fUST/lending_fUST_20251006
["ID","MTS","AMOUNT","RATE_DAILY","PERIOD"]
[389609643,1759743042242,-204.6365322,0.00021,2]
[389609644,1759743042251,-2000.0,0.00021032,2]
[389609645,1759743042260,-2000.0,0.00021032,2]
[389609646,1759743042269,-2000.0,0.00021032,2]
[389609647,1759743042278,-516.0,0.00021062,2]
[389609649,1759743042288,-1429.37488614,0.00021085,2]
[389609650,1759743042298,-179.9460162,0.00021086,2]
[389609651,1759743042307,-198.0,0.00021091,2]
[389609652,1759743042316,-151.0,0.00021091,2]
[389609653,1759743042326,-307.934,0.00021094,2]
[389609654,1759743042335,-3392.00800548,0.00021118,2]
[389609655,1759743042344,-151.0,0.00021163,2]
[389609656,1759743042352,-20006.03981059,0.00021163,2]
[389609657,1759743042361,-651.88110654,0.000212,2]
[389609659,1759743042370,-1112.0,0.00021266,2]
[389609660,1759743042379,-174.345799,0.00021319,2]
[389609661,1759743042389,-174.345799,0.00021319,2]
[389609662,1759743042398,-151.0,0.00021319,2]
[389609663,1759743042407,-174.345799,0.00021319,2]
[389609664,1759743042416,-151.0,0.00021319,2]
[389609665,1759743042425,-174.345799,0.00021319,2]
[389609666,1759743042434,-151.0,0.00021319,2]
[389609667,1759743042443,-151.0,0.00021319,2]
[389609668,1759743042452,-1429.37488624,0.0002133,2]
[389609669,1759743042461,-54757.07166037,0.00021354,2]
[389609670,1759743042477,-2739.40809234,0.00021354,2]
[389609672,1759743042488,-2079.99793369,0.00021354,2]
[389609673,1759743042720,-151.0,0.000181,2]
[389609674,1759743042729,-151.0,0.00018374,2]
[389609675,1759743042740,-151.0,0.000186,2]
[389609676,1759743042749,-198.0,0.00018648,2]
[389609677,1759743042759,-151.0,0.00019264,2]
[389609678,1759743042768,-151.0,0.0002,2]
[389609679,1759743042777,-151.0,0.00020271,2]
[389609680,1759743042786,-5552.2,0.00021354,2]
[389609681,1759743043270,151.0,0.00028767,120]
[389609682,1759743043284,-516.95304866,0.00018499,2]
[389609683,1759743043294,-334.52502227,0.00018499,2]
[389609684,1759743043303,-151.0,0.000186,2]
[389609685,1759743043313,-151.0,0.00019264,2]
[389609686,1759743043323,-151.0,0.0002,2]
[389609687,1759743043333,-151.0,0.00020271,2]
[389609688,1759743043342,-151.0,0.00020819,2]
[389609689,1759743043352,-21282.38842907,0.00021354,2]
[389609748,1759743045920,-253.11877367,0.00017989,2]
[389609749,1759743045929,-151.0,0.000186,2]
[389609750,1759743045938,-151.0,0.00019264,2]
[389609751,1759743045948,-151.0,0.0002,2]
[389609752,1759743045957,-31.41048025,0.00021354,2]
[389609791,1759743081235,302.0,0.00028767,120]
[389609792,1759743103424,150.0,0.00028767,120]
[389609793,1759743119028,150.0,0.00028767,120]
[389609794,1759743259586,193.94379418,0.00028767,120]
[389609796,1759743458044,500.0,0.00026,50]
[389609800,1759743471290,249.4281665,0.00026,50]
[389609801,1759743500389,94500.0,0.00026,60]
[389609811,1759743927707,272.24909621,0.00028,120]
[389609934,1759744237989,-300.0,0.00016909,2]
[389609936,1759744238000,-1200.0,0.00016909,2]
[389609938,1759744238010,-300.0,0.00016909,2]
[389609941,1759744238022,-442.14997108,0.00016909,2]
[389609942,1759744238036,-207.44676287,0.00016909,2]
[389609945,1759744238046,-530.3153099,0.0001691,2]
[389609947,1759744238062,-520.0,0.0001691,2]
[389609974,1759744240039,-43130.54407522,0.0001691,2]
[389609975,1759744240050,-1200.0,0.0001701,2]
[389609976,1759744240060,-150.0,0.00017111,2]
[389609977,1759744240069,-1000.0,0.00017111,2]
[389609978,1759744240079,-324.0,0.00017309,2]
[389609979,1759744240089,-236.585561,0.0001734,2]
[389609980,1759744240098,-348.0,0.00017709,2]
[389609981,1759744240107,-160.0,0.00017775,2]
[389609982,1759744240116,-160.0,0.00017775,2]
[389609984,1759744240125,-160.0,0.00017857,2]
[389609985,1759744240134,-533.6495537,0.00017857,2]
[389609986,1759744240144,-293.61728183,0.00017857,2]
[389609988,1759744240153,-160.0,0.00017857,2]
[389609989,1759744240161,-234.17717776,0.00017857,2]
[389609990,1759744240170,-21582.86017128,0.000179,2]
[389609991,1759744240179,-151.0,0.000181,2]
[389609992,1759744240188,-372.0,0.00018109,2]
[389609993,1759744240197,-151.0,0.00018433,2]
[389609994,1759744240206,-420.0,0.0001847,2]
[389609995,1759744240215,-396.0,0.00018509,2]
[389609996,1759744240224,-1429.3748861,0.00018566,2]
[389609997,1759744240233,-316.64361129,0.00018604,2]
[389609998,1759744240242,-151.0,0.00018766,2]
[389609999,1759744240251,-1429.3748861,0.00018862,2]
[389610000,1759744240260,-300.0,0.00018869,2]
[389610001,1759744240269,-300.0,0.00018869,2]
[389610002,1759744240278,-300.0,0.00018869,2]
[389610003,1759744240287,-300.0,0.00018869,2]
[389610004,1759744240296,-300.0,0.00018869,2]
[389610005,1759744240305,-300.0,0.00018869,2]
[389610006,1759744240314,-300.0,0.00018869,2]
[389610007,1759744240323,-300.0,0.00018869,2]
[389610008,1759744240332,-300.0,0.00018869,2]
[389610009,1759744240342,-300.0,0.00018869,2]
[389610010,1759744240350,-300.0,0.00018869,2]
[389610011,1759744240359,-300.0,0.00018869,2]
[389610012,1759744240369,-300.0,0.00018869,2]
[389610013,1759744240380,-300.0,0.00018869,2]
[389610014,1759744240389,-300.0,0.00018869,2]
[389610015,1759744240398,-273.0,0.00018904,3]
[389610016,1759744240407,-420.0,0.00018909,2]
[389610017,1759744240416,-1429.3748861,0.0001904,2]
[389610018,1759744240426,-151.0,0.000191,2]
[389610019,1759744240435,-162.0,0.00019219,2]
[389610020,1759744240444,-162.34539203,0.00019219,2]
[389610021,1759744240453,-500.0,0.00019219,2]
[389610022,1759744240462,-600.0,0.00019245,2]
[389610023,1759744240471,-151.0,0.00019264,2]
[389610024,1759744240480,-1066.0,0.00019264,2]
[389610025,1759744240489,-500.0,0.00019264,2]
[389610026,1759744240498,-151.0,0.00019264,2]
[389610027,1759744240507,-151.0,0.00019264,2]
[389610028,1759744240516,-151.0,0.00019264,2]
[389610029,1759744240525,-151.0,0.00019264,2]
[389610030,1759744240535,-500.0,0.00019264,2]
[389610031,1759744240544,-151.0,0.00019264,2]
[389610032,1759744240553,-151.0,0.00019264,2]
[389610033,1759744240562,-151.0,0.00019264,2]
[389610034,1759744240571,-151.0,0.00019264,2]
[389610035,1759744240580,-151.0,0.00019264,2]
[389610036,1759744240589,-152.59747206,0.00019264,2]
[389610037,1759744240598,-151.0,0.00019264,2]
[389610038,1759744240607,-151.0,0.00019264,2]
[389610039,1759744240617,-1429.3748861,0.00019271,2]
[389610040,1759744240626,-1062.60035708,0.00019278,2]
[389610041,1759744240646,-444.0,0.00019309,2]
[389610042,1759744240655,-500.0,0.00019493,2]
[389610043,1759744240665,-198.0,0.00019538,2]
[389610044,1759744240675,-1066.0,0.00019538,2]
[389610045,1759744240684,-638.22483413,0.00019538,2]
[389610046,1759744240694,-151.0,0.00019538,2]
[389610047,1759744240703,-163.95982366,0.00019538,2]
[389610048,1759744240712,-151.0,0.00019538,2]
[389610049,1759744240722,-541.36153996,0.00019538,2]
[389610050,1759744240732,-151.0,0.00019538,2]
[389610051,1759744240741,-151.0,0.00019538,2]
[389610052,1759744240751,-151.0,0.00019538,2]
[389610053,1759744240760,-151.0,0.00019538,2]
[389610054,1759744240769,-151.0,0.00019538,2]
[389610055,1759744240779,-151.0,0.00019538,2]
[389610056,1759744240788,-151.0,0.00019538,2]
[389610057,1759744240798,-1429.3748861,0.00019689,2]
[389610058,1759744240808,-468.0,0.00019709,2]
[389610059,1759744240817,-500.0,0.00019767,2]
[389610060,1759744240826,-1066.0,0.00019812,2]
[389610061,1759744240836,-193.2023774,0.00019812,2]
[389610062,1759744240845,-213.15930828,0.00019812,2]
[389610063,1759744240854,-198.0,0.00019812,2]
[389610064,1759744240863,-151.0,0.00019812,2]
[389610065,1759744240873,-151.0,0.00019812,2]
[389610066,1759744240882,-151.0,0.00019812,2]
[389610067,1759744240891,-198.0,0.00019812,2]
[389610068,1759744240900,-151.0,0.00019812,2]
[389610069,1759744240910,-234.16751559,0.0001985,2]
[389610070,1759744240919,-361.86713406,0.0001985,2]
[389610071,1759744240929,-1000.0,0.00019851,2]
[389610072,1759744240938,-1000.0,0.00019851,2]
[389610073,1759744240948,-500.0,0.00019851,2]
[389610074,1759744240958,-151.0,0.00019851,2]
[389610075,1759744240967,-1000.0,0.00019851,2]
[389610076,1759744240976,-250.0,0.00019851,2]
[389610077,1759744240986,-250.0,0.00019851,2]
[389610078,1759744240995,-500.0,0.00019851,2]
[389610079,1759744241005,-1000.0,0.00019851,2]
[389610080,1759744241014,-250.0,0.00019851,2]
[389610081,1759744241028,-250.0,0.00019851,2]
[389610082,1759744241037,-151.0,0.00019851,2]
[389610083,1759744241047,-500.0,0.00019851,2]
[389610084,1759744241056,-250.0,0.00019851,2]
[389610085,1759744241066,-1000.0,0.00019851,2]
[389610086,1759744241076,-263.07031156,0.00019851,2]
[389610087,1759744241085,-155.71135223,0.00019851,2]
[389610088,1759744241096,-500.0,0.00019851,2]
[389610089,1759744241106,-1000.0,0.00019851,2]
[389610090,1759744241116,-250.0,0.00019851,2]
[389610091,1759744241125,-500.0,0.00019851,2]
[389610092,1759744241135,-1000.0,0.00019851,2]
[389610093,1759744241144,-250.0,0.00019851,2]
[389610094,1759744241153,-1000.0,0.00019851,2]
[389610095,1759744241162,-250.0,0.00019851,2]
[389610096,1759744241171,-500.0,0.00019851,2]
[389610097,1759744241180,-1000.0,0.00019851,2]
[389610098,1759744241189,-250.0,0.00019851,2]
[389610099,1759744241198,-500.0,0.00019851,2]
[389610100,1759744241208,-1000.0,0.00019851,2]
[389610101,1759744241217,-260.07757208,0.00019851,2]
[389610102,1759744241226,-500.0,0.00019851,2]
[389610103,1759744241236,-274.3661728,0.00019851,2]
[389610104,1759744241245,-500.0,0.00019851,2]
[389610105,1759744241254,-18603.8837,0.00019851,2]
[389610106,1759744241263,-500.0,0.00019851,2]
[389610107,1759744241272,-151.0,0.00019851,2]
[389610108,1759744241281,-514.67748118,0.00019851,2]
[389610109,1759744241290,-500.0,0.00019851,2]
[389610110,1759744241300,-151.0,0.00019851,2]
[389610111,1759744241309,-500.0,0.00019851,2]
[389610112,1759744241318,-500.0,0.00019851,2]
[389610113,1759744241327,-151.0,0.00019851,2]
[389610114,1759744241336,-500.0,0.00019851,2]
[389610115,1759744241346,-151.0,0.00019851,2]
[389610116,1759744241355,-2000.0,0.00019851,2]
[389610117,1759744241364,-514.6103374,0.00019851,2]
[389610118,1759744241374,-325.92399859,0.00019851,2]
[389610119,1759744241382,-151.0,0.00019851,2]
[389610120,1759744241391,-346.26920987,0.00019851,2]
[389610121,1759744241405,-950.20832156,0.00019851,2]
[389610182,1759744243130,-703.52246857,0.00019851,2]
[389610184,1759744243139,-151.0,0.00019851,2]
[389610186,1759744243148,-401.29553275,0.00019851,2]
[389610190,1759744243183,-1143.89897128,0.00019851,2]
[389610192,1759744243192,-151.0,0.00019851,2]
[389610194,1759744243201,-151.0,0.00019851,2]
[389610196,1759744243210,-151.0,0.00019851,2]
[389610198,1759744243219,-151.0,0.00019851,2]
[389610199,1759744243228,-151.0,0.00019851,2]
[389610200,1759744243238,-1000.0,0.00019851,2]
[389610202,1759744243248,-151.0,0.00019851,2]
[389610205,1759744243257,-1000.0,0.00019851,2]
[389610206,1759744243267,-151.0,0.00019851,2]
[389610208,1759744243276,-1000.0,0.00019851,2]
[389610210,1759744243285,-151.0,0.00019851,2]
[389610212,1759744243294,-1000.0,0.00019851,2]
[389610214,1759744243303,-151.0,0.00019851,2]
[389610216,1759744243312,-1000.0,0.00019851,2]
[389610217,1759744243321,-250.0,0.00019851,2]
[389610219,1759744243330,-155.786338,0.00019851,2]
[389610220,1759744243340,-1000.0,0.00019851,2]
[389610221,1759744243349,-250.0,0.00019851,2]
[389610222,1759744243359,-1000.0,0.00019851,2]
[389610223,1759744243370,-250.0,0.00019851,2]
[389610224,1759744243378,-1000.0,0.00019851,2]
[389610225,1759744243387,-250.0,0.00019851,2]
[389610226,1759744243396,-1000.0,0.00019851,2]
[389610227,1759744243405,-1.95403365,0.00019851,2]
[389610244,1759744246126,-248.04596635,0.00019851,2]
[389610245,1759744246136,-351.45523641,0.00019851,2]
[389610357,1759744511177,2000.0,0.00028767,120]
[389610358,1759744518502,2000.0,0.00028767,120]
[389610359,1759744520378,2000.0,0.00028767,120]
[389610360,1759744528392,708.0,0.00028767,120]
[389610362,1759744784814,7903.0,0.00025,30]
[389610363,1759744858430,319.69,0.00028767,120]
[389610365,1759745251503,7000.0,0.00015,30]
[389610367,1759745287522,1500.0,0.00015,2]
[389610368,1759745305554,14.81533545,0.00015,2]
[389610369,1759745305574,1485.18466455,0.00015,2]
[389610370,1759745347149,300.0,0.00025,30]
[389610371,1759745355373,600.0,0.00025,30]
[389610372,1759745362885,880.29823075,0.00025,30]
[389610450,1759745432351,-450.51194209,0.00017416,2]
[389610461,1759745432406,-1923.47413461,0.00017416,2]
[389610464,1759745432415,-300.0,0.00017416,2]
[389610467,1759745432425,-324.0,0.00017816,2]
[389610470,1759745432434,-151.0,0.000181,2]
[389610473,1759745432444,-255.53060534,0.000181,2]
[389610476,1759745432453,-150.0,0.000181,2]
[389610478,1759745432462,-348.0,0.00018216,2]
[389610481,1759745432471,-151.0,0.00018266,2]
[389610484,1759745432480,-198.0,0.00018356,3]
[389610487,1759745432489,-533.6495537,0.00018357,2]
[389610489,1759745432498,-196.22206204,0.00018357,2]
[389610494,1759745432510,-97.39521979,0.00018357,2]
[389610497,1759745432518,-270.0,0.00018363,2]
[389610500,1759745432528,-300.0,0.00018363,2]
[389610502,1759745432537,-160.0,0.00018364,2]
[389610504,1759745432548,-160.0,0.00018364,2]
[389610507,1759745432557,-29.26117887,0.00018364,2]
[389610511,1759745432568,-130.73882113,0.00018364,2]
[389610514,1759745432577,-234.17717776,0.00018364,2]
[389610518,1759745432588,-160.0,0.00018365,2]
[389610520,1759745432597,-376.44042348,0.00018371,2]
[389610644,1759745438156,-7363.45359356,0.00018371,2]
[389610645,1759745438168,-18745.3046192,0.00018371,2]
[389610646,1759745438262,-307.60049847,0.00018371,2]
[389610652,1759745440254,-2776.62570235,0.00018371,2]
[389610653,1759745440266,-315.0125792,0.00018371,2]
[389610654,1759745440312,-528.89051107,0.00018371,2]
[389610696,1759745443362,-2468.18,0.00018371,2]
[389610698,1759745443372,-3908.40968726,0.00018371,2]
[389610709,1759745443468,-6072.24213467,0.00018371,2]
[389610711,1759745443477,-151.0,0.00018433,2]
[389610713,1759745443486,-4518.6805481,0.00018483,2]
[389610715,1759745443495,-151.0,0.000186,2]
[389610717,1759745443505,-1429.374886,0.00018602,2]
[389610719,1759745443513,-372.0,0.00018616,2]
[389610720,1759745443522,-151.0,0.00018766,2]
[389610722,1759745443531,-1429.374886,0.00018814,2]
[389610724,1759745443540,-1429.374886,0.00018913,2]
[389610726,1759745443549,-151.0,0.00018933,2]
[389610729,1759745443558,-382.47928329,0.0001894,2]
[389610731,1759745443567,-500.0,0.00018989,2]
[389610733,1759745443575,-195.248146,0.00018989,2]
[389610735,1759745443585,-266.86384211,0.00018989,2]
[389610737,1759745443594,-252.26783461,0.00018989,2]
[389610738,1759745443603,-154.76377223,0.00018989,2]
[389610740,1759745443613,-500.0,0.00018989,2]
[389610742,1759745443622,-388.25797007,0.00018989,2]
[389610744,1759745443631,-155.72655105,0.0001899,2]
[389611009,1759745446312,-59469.59878769,0.0001899,2]
[389611011,1759745446322,-396.0,0.00019016,2]
[389611013,1759745446331,-151.0,0.000191,2]
[389611015,1759745446341,-1429.374886,0.00019343,2]
[389611017,1759745446351,-3000.0,0.000194,2]
[389611019,1759745446361,-3000.0,0.0001941,2]
[389611021,1759745446370,-420.0,0.00019416,2]
[389611023,1759745446379,-3000.0,0.0001942,2]
[389611025,1759745446388,-3000.0,0.0001943,2]
[389611027,1759745446397,-3000.0,0.0001944,2]
[389611029,1759745446406,-3000.0,0.0001945,2]
[389611031,1759745446418,-1429.374887,0.00019457,2]
[389611033,1759745446427,-3000.0,0.0001946,2]
[389611035,1759745446436,-207.68461608,0.0001946,2]
[389611037,1759745446446,-206.49,0.0001946,3]
[389611039,1759745446454,-619.5,0.0001946,3]
[389611041,1759745446463,-3000.0,0.0001947,2]
[389611043,1759745446473,-3000.0,0.0001948,2]
[389611045,1759745446482,-3000.0,0.0001949,2]
[389611047,1759745446490,-3000.0,0.000195,2]
[389611049,1759745446499,-3000.0,0.0001951,2]
[389611051,1759745446508,-3000.0,0.0001952,2]
[389611053,1759745446517,-3000.0,0.0001953,2]
[389611055,1759745446526,-3000.0,0.0001954,2]
[389611057,1759745446535,-3000.0,0.0001955,2]
[389611059,1759745446544,-3000.0,0.0001956,2]
[389611061,1759745446553,-3000.0,0.0001957,2]
[389611063,1759745446562,-3000.0,0.0001958,2]
[389611065,1759745446571,-3000.0,0.0001959,2]
[389611067,1759745446580,-3000.0,0.000196,2]
[389611069,1759745446589,-3000.0,0.0001961,2]
[389611071,1759745446600,-3000.0,0.0001962,2]
[389611073,1759745446608,-3000.0,0.0001963,2]
[389611075,1759745446618,-3000.0,0.0001964,2]
[389611077,1759745446627,-3000.0,0.0001965,2]
[389611079,1759745446636,-3000.0,0.0001966,2]
[389611081,1759745446647,-3000.0,0.0001967,2]
[389611083,1759745446656,-1670.97682323,0.0001968,2]
[389611086,1759745446675,-1329.02317677,0.0001968,2]
[389611088,1759745446684,-3000.0,0.0001969,2]
[389611090,1759745446693,-756.68405655,0.000197,2]
[389611776,1759745615850,1500.0,0.00028767,120]
[389613150,1759746043301,2689.50754507,0.00028767,120]
[389613151,1759746146024,171.0,0.00028255,120]
[389613159,1759746439047,1072.0,0.00028767,120]
[389613160,1759746441081,-1238.23945695,0.00016438,2]
[389613166,1759746517469,154.928,0.00028767,120]
[389613234,1759746632613,-261.76054305,0.00016438,2]
[389613236,1759746632624,-300.0,0.00016438,2]
[389613238,1759746632632,-1000.0,0.00016438,2]
[389613240,1759746632641,-300.0,0.00016505,2]
[389613242,1759746632651,-704.77850067,0.00016506,2]
[389613243,1759746632660,-2816.29488868,0.00016506,2]
[389613245,1759746632669,-177.99967388,0.00016506,2]
[389613246,1759746632678,-711.28669681,0.00016506,2]
[389613247,1759746632687,-558.42518692,0.00016738,2]
[389613249,1759746632696,-300.0,0.00016835,2]
[389613250,1759746632706,-300.0,0.00016835,2]
[389613251,1759746632715,-300.0,0.00016835,2]
[389613252,1759746632724,-300.0,0.00016835,2]
[389613253,1759746632733,-300.0,0.00016835,2]
[389613254,1759746632741,-300.0,0.00016835,2]
[389613255,1759746632750,-300.0,0.00016835,2]
[389613256,1759746632759,-300.0,0.00016835,2]
[389613257,1759746632768,-300.0,0.00016835,2]
[389613258,1759746632777,-300.0,0.00016835,2]
[389613259,1759746632786,-300.0,0.00016835,2]
[389613260,1759746632795,-300.0,0.00016835,2]
[389613261,1759746632803,-300.0,0.00016835,2]
[389613262,1759746632812,-300.0,0.00016835,2]
[389613263,1759746632821,-300.0,0.00016835,2]
[389613264,1759746632830,-36563.51256626,0.00016835,2]
[389613265,1759746632839,-324.0,0.00016838,2]
[389613266,1759746632849,-600.0,0.00017171,2]
[389613267,1759746632858,-348.0,0.00017238,2]
[389613268,1759746632867,-234.17717776,0.00017634,2]
[389613269,1759746632876,-160.0,0.00017634,2]
[389613270,1759746632885,-317.01984886,0.00017634,2]
[389613282,1759746638292,-293.61728183,0.00017634,2]
[389613283,1759746638302,-372.0,0.00017638,2]
[389613284,1759746638311,-420.0,0.00018036,2]
[389613285,1759746638320,-215.50560942,0.00018038,2]
[389613286,1759746638331,-180.49439058,0.00018038,2]
[389613287,1759746638341,-250.0,0.00018051,2]
[389613288,1759746638350,-209.0,0.00018384,3]
[389613289,1759746638359,-420.0,0.00018438,2]
[389613290,1759746638369,-651.88110754,0.000185,2]
[389613291,1759746638378,-558.42518692,0.00018638,2]
[389613292,1759746638388,-444.0,0.00018838,2]
[389613293,1759746638397,-720.0,0.00018888,2]
[389613294,1759746638407,-1022.20575264,0.00019,2]
[389613295,1759746638419,-963.85330514,0.00019,2]
[389613296,1759746638430,-1003.90200101,0.00019,2]
[389613297,1759746638445,-10166.62350604,0.00019,2]
[389613305,1759746643532,-160.0,0.00018036,2]
[389613306,1759746643542,-375.9915868,0.00019,2]
[389613351,1759746646511,-694.50938659,0.00019,2]
[389613354,1759746646534,-137.58216188,0.00019,2]
[389614633,1759747597917,1068.6460503,0.00028767,120]
[389614636,1759747792740,613.34332592,0.0002012,9]
[389614757,1759747840816,-300.0,0.00016111,2]
[389614758,1759747840827,-1239.81337512,0.00016438,2]
[389614774,1759747843819,-539.19261634,0.00016438,2]
[389614782,1759747846596,-220.99400854,0.00016438,2]
[389614783,1759747846606,-602.25,0.00016438,2]
[389614784,1759747846615,-324.0,0.00016511,2]
[389614785,1759747846624,-348.0,0.00016911,2]
[389614786,1759747846634,-300.0,0.00017238,2]
[389614787,1759747846644,-5481.3294519,0.00017239,2]
[389614788,1759747846654,-372.0,0.00017311,2]
[389614789,1759747846666,-1051.0358791,0.00017377,2]
[389614790,1759747846676,-2528.0405356,0.00017377,2]
[389614791,1759747846686,-1041.8902903,0.00017377,2]
[389614792,1759747846700,-396.0,0.00017711,2]
[389614793,1759747846709,-300.0,0.00017724,2]
[389614794,1759747846719,-300.0,0.00017724,2]
[389614795,1759747846729,-300.0,0.00017724,2]
[389614796,1759747846738,-300.0,0.00017724,2]
[389614797,1759747846748,-300.0,0.00017724,2]
[389614798,1759747846758,-300.0,0.00017724,2]
[389614799,1759747846768,-300.0,0.00017724,2]
[389614800,1759747846778,-300.0,0.00017724,2]
[389614801,1759747846788,-300.0,0.00017724,2]
[389614802,1759747846797,-300.0,0.00017724,2]
[389614803,1759747846810,-300.0,0.00017724,2]
[389614804,1759747846819,-300.0,0.00017724,2]
[389614805,1759747846829,-300.0,0.00017724,2]
[389614806,1759747846838,-300.0,0.00017724,2]
[389614807,1759747846850,-300.0,0.00017724,2]
[389614808,1759747846859,-420.0,0.00018111,2]
[389614809,1759747846869,-177.0,0.00018384,3]
[389614810,1759747846879,-444.0,0.00018511,2]
[389614811,1759747846889,-160.0,0.0001871,2]
[389614812,1759747846898,-160.0,0.00018804,2]
[389614813,1759747846908,-533.6495537,0.00018804,2]
[389614814,1759747846917,-160.0,0.00018804,2]
[389614815,1759747846927,-234.17717776,0.00018804,2]
[389614817,1759747846936,-420.0,0.00018823,2]
[389614818,1759747846947,-293.61728183,0.00018841,2]
[389614819,1759747846956,-468.0,0.00018911,2]
[389614820,1759747846965,-4198.06417318,0.0001895,2]
[389614821,1759747846973,-151.0,0.00018989,2]
[389614822,1759747846983,-18603.8837,0.00018989,2]
[389614823,1759747846992,-1000.0,0.00018989,2]
[389614824,1759747847001,-1000.0,0.00018989,2]
[389614825,1759747847011,-872.64328525,0.00018989,2]
[389614826,1759747847022,-127.35671475,0.00018989,2]
[389614827,1759747847031,-1000.0,0.00018989,2]
[389614828,1759747847041,-258.8759698,0.00018989,2]
[389614829,1759747847050,-1000.0,0.00018989,2]
[389614830,1759747847059,-1000.0,0.00018989,2]
[389614831,1759747847068,-449.47657717,0.00018989,2]
[389614832,1759747847077,-9618.02338758,0.00019,2]
[389614833,1759747847088,-2136.29611235,0.00019,2]
[389614834,1759747847108,-2515.62,0.00019,2]
[389614849,1759747959573,10000.0,0.00028767,120]
[389614850,1759747973160,365.04,0.00028767,120]
[389615112,1759749039805,-150.0,0.00017949,2]
[389615114,1759749039815,-300.0,0.00017949,2]
[389615116,1759749039824,-321.12475038,0.00017949,2]
[389615118,1759749039832,-160.0,0.00018313,2]
[389615119,1759749039842,-324.0,0.00018349,2]
[389615121,1759749039851,-2556.55450702,0.00018565,2]
[389615122,1759749039861,-596.55313028,0.00018565,2]
[389615123,1759749039870,-162.0,0.00018749,2]
[389615124,1759749039879,-80.89204459,0.00018749,2]
[389615125,1759749039890,-267.10795541,0.00018749,2]
[389615126,1759749039900,-2232.89204459,0.000188,2]
[389615127,1759749039910,-480.71435981,0.000188,2]
[389615129,1759749039920,-160.0,0.00018856,2]
[389615130,1759749039930,-148.14756077,0.00018864,2]
[389615131,1759749039943,-10.85243923,0.00018864,2]
[389615132,1759749039953,-300.0,0.00018864,2]
[389615133,1759749039962,-234.17717776,0.00018865,2]
[389615134,1759749039971,-293.61728183,0.00018865,2]
[389615135,1759749039984,-1200.0,0.00018872,2]
[389615136,1759749039993,-500.0,0.00018873,2]
[389615137,1759749040002,-500.0,0.00018873,2]
[389615138,1759749040011,-500.0,0.00018873,2]
[389615139,1759749040021,-341.55666163,0.00018873,2]
[389615140,1759749040036,-500.0,0.00018873,2]
[389615141,1759749040045,-500.0,0.00018873,2]
[389615142,1759749040054,-500.0,0.00018873,2]
[389615143,1759749040063,-500.0,0.00018873,2]
[389615144,1759749040072,-500.0,0.00018873,2]
[389615145,1759749040081,-317.17269844,0.00018873,2]
[389615146,1759749040092,-182.82730156,0.00018873,2]
[389615147,1759749040101,-500.0,0.00018873,2]
[389615148,1759749040110,-500.0,0.00018873,2]
[389615149,1759749040119,-500.0,0.00018873,2]
[389615150,1759749040128,-500.0,0.00018873,2]
[389615151,1759749040138,-500.0,0.00018873,2]
[389615152,1759749040147,-500.0,0.00018873,2]
[389615153,1759749040156,-500.0,0.00018873,2]
[389615154,1759749040165,-500.75186401,0.00018873,2]
[389615155,1759749040174,-500.0,0.00018873,2]
[389615156,1759749040184,-501.331365,0.00018873,2]
[389615157,1759749040193,-500.50022108,0.00018873,2]